fUST/lending_fUST_20260226
["ID","MTS","AMOUNT","RATE_DAILY","PERIOD"]
[406709574,1772113191045,-1000.0,0.0001226,2]
[406709575,1772113191338,-1000.0,0.0001226,2]
[406709576,1772113191689,-1000.0,0.0001226,2]
[406709577,1772113192068,-1000.0,0.0001226,2]
[406709578,1772113192714,-1000.0,0.0001226,2]
[406709579,1772113192843,-1000.0,0.0001226,2]
[406709580,1772113193256,-1000.0,0.0001226,2]
[406709581,1772113193611,-1000.0,0.0001226,2]
[406709582,1772113194312,-1000.0,0.0001226,2]
[406709583,1772113194396,-1000.0,0.0001226,2]
[406709584,1772113196618,-1000.0,0.0001226,2]
[406709585,1772113196683,-1000.0,0.0001226,2]
[406709586,1772113197043,-1000.0,0.0001226,2]
[406709587,1772113197435,-1000.0,0.0001226,2]
[406709588,1772113197854,-1000.0,0.0001226,2]
[406709589,1772113198191,-1000.0,0.0001226,2]
[406709590,1772113198592,-1000.0,0.0001226,2]
[406709591,1772113198987,-1000.0,0.0001226,2]
[406709592,1772113199358,-1000.0,0.0001226,2]
[406709593,1772113199763,-336.0,0.0001226,2]
[406709594,1772113246064,-1000.0,0.00012014,2]
[406709595,1772113246940,-1000.0,0.00012014,2]
[406709596,1772113248011,-701.8510521,0.00012014,2]
[406709597,1772113249765,-594.3066,0.00019339,30]
[406709598,1772113249812,-293.0,0.000204,120]
[406709599,1772113249860,-176.0,0.000204,120]
[406709600,1772113249908,-177.0,0.000204,120]
[406709601,1772113249954,-177.0,0.000204,120]
[406709602,1772113250001,-293.0,0.0002142,120]
[406709603,1772113250048,-176.0,0.0002142,120]
[406709604,1772113250096,-177.0,0.0002142,120]
[406709605,1772113250142,-177.0,0.0002142,120]
[406709606,1772113250190,-293.0,0.00022491,120]
[406709607,1772113250237,-176.0,0.00022491,120]
[406709608,1772113250281,-177.0,0.00022491,120]
[406709609,1772113250327,-293.0,0.00023616,120]
[406709610,1772113250369,-176.0,0.00023616,120]
[406709611,1772113250412,-177.0,0.00023616,120]
[406709612,1772113250455,-596.36354441,0.00024384,30]
[406709613,1772113250497,-596.36354441,0.00024521,30]
[406709614,1772113250538,-596.36354441,0.0002463,30]
[406709615,1772113250580,-596.36354441,0.0002474,30]
[406709616,1772113250621,-596.36354441,0.00024877,30]
[406709617,1772113250664,-596.36354441,0.00024986,30]
[406709618,1772113250708,-2715.29,0.00025,30]
[406709619,1772113250752,-596.36354441,0.00025096,30]
[406709620,1772113250795,-1377.75205181,0.0002519,30]
[406709621,1772113250839,-596.36354441,0.00025233,30]
[406709622,1772113250882,-596.36354441,0.00025342,30]
[406709623,1772113250925,-991.79504291,0.00025444,120]
[406709624,1772113250966,-596.36354441,0.00025452,30]
[406709625,1772113251006,-596.36354441,0.00025562,30]
[406709626,1772113251049,-596.36354441,0.00025699,30]
[406709627,1772113251091,-2032.61413897,0.00026,120]
[406709628,1772113251132,-753.61923684,0.00026,120]
[406709629,1772113251175,-1000.0,0.00026,30]
[406709630,1772113251215,-1601.67811227,0.00026,30]
[406709631,1772113251258,-2000.0,0.0002625,120]
[406709632,1772113251302,-288.0,0.00026692,120]
[406709633,1772113251344,-221.91583504,0.00026712,120]
[406709634,1772113251383,-243.39780319,0.00026712,30]
[406709635,1772113251423,-618.6121,0.00027,120]
[406709636,1772113251464,-200.0,0.00027,120]
[406709637,1772113251504,-200.0,0.00027,120]
[406709638,1772113251550,-1000.0,0.00027151,30]
[406709639,1772113251591,-224.27657249,0.00027154,120]
[406709640,1772113251639,-1207.0,0.000273,120]
[406709641,1772113251682,-3761.03938951,0.0002738,120]
[406709642,1772113251723,-5000.0,0.00027397,120]
[406709643,1772113251763,-1546.54421031,0.00027397,120]
[406709644,1772113251804,-726.511,0.00027397,120]
[406709645,1772113251847,-2000.0,0.00027444,120]
[406709646,1772113251887,-797.47,0.000276,120]
[406709647,1772113251931,-2715.29,0.00027697,30]
[406709648,1772113251972,-200.0,0.00027988,30]
[406709649,1772113252013,-200.0,0.00027988,30]
[406709650,1772113252055,-200.0,0.00027988,30]
[406709651,1772113252094,-200.0,0.00027988,30]
[406709652,1772113252134,-200.0,0.00027988,30]
[406709653,1772113252174,-362.46276798,0.00027988,30]
[406709654,1772113252216,-1000.0,0.00028,30]
[406709655,1772113252258,-20000.0,0.00028,30]
[406709656,1772113252302,-297.409882,0.00028119,30]
[406709657,1772113252345,-1952.0,0.000284,120]
[406709658,1772113252388,-720.31042807,0.0002849,120]
[406709659,1772113252431,-900.02306598,0.0002876,120]
[406709660,1772113252474,-186.791053,0.00028767,60]
[406709661,1772113252520,-900.0,0.00028954,30]
[406709662,1772113252563,-900.0,0.00028954,30]
[406709663,1772113252609,-852.0,0.00028954,30]
[406709664,1772113252656,-200.0,0.000294,30]
[406709665,1772113252702,-1000.0,0.00029866,30]
[406709666,1772113252744,-244.0,0.00029866,30]
[406709667,1772113252787,-300.0,0.00029923,120]
[406709668,1772113252830,-300.0,0.00029923,120]
[406709669,1772113252874,-175.0,0.00029923,120]
[406709670,1772113252917,-4161.76142496,0.0003,120]
[406709671,1772113252959,-24935.07991155,0.0003,30]
[406709672,1772113253000,-1067.49965187,0.0003,60]
[406709673,1772113253041,-1898.96070604,0.0003,120]
[406709674,1772113253080,-2590.95756835,0.0003,120]
[406709675,1772113253121,-1269.24766659,0.0003,120]
[406709676,1772113253162,-5252.55138543,0.0003,120]
[406709677,1772113253203,-5876.05629536,0.0003,30]
[406709678,1772113253244,-1000.0,0.0003,30]
[406709679,1772113253284,-2000.0,0.0003,120]
[406709680,1772113253325,-300.0,0.0003,30]
[406709681,1772113253366,-273.5,0.0003,30]
[406709682,1772113253407,-57697.2,0.0003,120]
[406709683,1772113253448,-1200.0,0.0003,30]
[406709684,1772113253489,-100000.0,0.0003,30]
[406709685,1772113253529,-2085.4310149,0.0003,120]
[406709686,1772113253587,-2710.96,0.0003,120]
[406709687,1772113253627,-103480.99347981,0.0003,30]
[406709688,1772113253675,-24285.57035884,0.0003,120]
[406709689,1772113253717,-1038.11,0.0003,30]
[406709690,1772113253759,-1007.91,0.0003,30]
[406709691,1772113253801,-201.0,0.00030036,120]
[406709692,1772113253843,-874.0966496,0.00030054,30]
[406709693,1772113253890,-1419.49609412,0.0003013,120]
[406709694,1772113253933,-7045.13045785,0.00030136,120]
[406709695,1772113253975,-2115.06,0.00030136,120]
[406709696,1772113254019,-1000.0,0.00030137,120]
[406709697,1772113254231,-1200.0,0.00030137,120]
[406709698,1772113254270,-5934.9835134,0.00030137,120]
[406709699,1772113254309,-4052.0,0.00030137,120]
[406709700,1772113254348,-1569.5334703,0.00030137,120]
[406709701,1772113254388,-5087.04205074,0.0003015,120]
[406709702,1772113254428,-189.76582683,0.0003015,120]
[406709703,1772113254468,-5000.0,0.0003016,120]
[406709704,1772113254512,-2115.06,0.00030164,120]
[406709705,1772113254553,-2115.06,0.00030191,120]
[406709706,1772113254601,-2115.06,0.00030219,120]
[406709707,1772113254653,-2115.06,0.00030246,120]
[406709708,1772113254698,-242.10485184,0.00030247,39]
[406709709,1772113254740,-2115.06,0.00030273,120]
[406709710,1772113254781,-2115.06,0.00030301,120]
[406709711,1772113254822,-2115.06,0.00030328,120]
[406709712,1772113254866,-2115.06,0.00030356,120]
[406709713,1772113254907,-2115.06,0.00030383,120]
[406709714,1772113254948,-2715.29,0.00030394,60]
[406709715,1772113254993,-309.0,0.000304,33]
[406709716,1772113255036,-2115.06,0.0003041,120]
[406709717,1772113255077,-2115.06,0.00030438,120]
[406709718,1772113255116,-2115.06,0.00030465,120]
[406709719,1772113255155,-2115.06,0.00030493,120]
[406709720,1772113255196,-1038.11,0.000305,30]
[406709721,1772113255238,-2115.06,0.0003052,120]
[406709722,1772113255280,-874.0966496,0.00030545,30]
[406709723,1772113255320,-2115.06,0.00030547,120]
[406709724,1772113255362,-2115.06,0.00030575,120]
[406709725,1772113255402,-2115.06,0.00030602,120]
[406709726,1772113255442,-2115.06,0.0003063,120]
[406709727,1772113255482,-2115.06,0.00030657,120]
[406709728,1772113255523,-1007.91,0.00030667,30]
[406709729,1772113255564,-2115.06,0.00030684,120]
[406709730,1772113255605,-797.47,0.000307,60]
[406709731,1772113255646,-2115.06,0.00030712,120]
[406709732,1772113255686,-2115.06,0.00030739,120]
[406709733,1772113255727,-2115.28156657,0.00030767,120]
[406709734,1772113255766,-181.0,0.00030795,42]
[406709735,1772113255808,-1112.764436,0.00030826,30]
[406709736,1772113255850,-236.45,0.00030868,30]
[406709737,1772113255892,-1038.11,0.00031,30]
[406709738,1772113255936,-618.6068769,0.00031,30]
[406709739,1772113255979,-1000.0,0.00031,30]
[406709740,1772113256024,-1000.0,0.00031,120]
[406709741,1772113256067,-2105.0,0.00031,120]
[406709742,1772113256110,-1748.0932992,0.00031035,30]
[406709743,1772113256154,-1007.91,0.00031333,30]
[406709744,1772113256199,-169.0,0.00031342,45]
[406709745,1772113256246,-2000.0,0.000314,120]
[406709746,1772113256291,-251.97,0.000314,60]
[406709747,1772113256335,-335.96,0.000314,30]
[406709748,1772113256379,-178.292,0.000314,120]
[406709749,1772113256424,-1038.11,0.000315,30]
[406709750,1772113256469,-306.0,0.0003189,49]
[406709751,1772113256513,-1000.0,0.000319,30]
[406709752,1772113256558,-3019.111122,0.00031976,30]
[406709753,1772113256602,-1038.11,0.00032,30]
[406709754,1772113256652,-1007.91,0.00032,30]
[406709755,1772113256695,-920.6424897,0.00032,120]
[406709756,1772113256737,-1000.0,0.00032,30]
[406709757,1772113256781,-2000.0,0.00032,120]
[406709758,1772113256823,-1000.0,0.000322,30]
[406709759,1772113256864,-250.2551,0.000323,120]
[406709760,1772113256908,-200.0,0.000323,120]
[406709761,1772113256958,-341.77956,0.000323,120]
[406709762,1772113257006,-618.6121,0.000323,120]
[406709763,1772113257053,-380.78756,0.000323,120]
[406709764,1772113257100,-341.77956,0.000323,120]
[406709765,1772113257147,-1000.0,0.000325,30]
[406709766,1772113257192,-1038.11,0.000325,120]
[406709767,1772113257241,-1007.91,0.00032667,120]
[406709768,1772113257286,-472.89,0.00032752,30]
[406709769,1772113257330,-1000.0,0.000328,30]
[406709770,1772113257375,-1000.0,0.00032853,30]
[406709771,1772113257424,-492.0,0.00032853,30]
[406709772,1772113257468,-1000.0,0.00032877,120]
[406709773,1772113257512,-8720.0,0.00032877,120]
[406709774,1772113257555,-1358.76,0.0003298,120]
[406709775,1772113257598,-1383.28,0.0003298,120]
[406709776,1772113257647,-269.0,0.00032986,57]
[406709777,1772113257691,-1038.11,0.00033,120]
[406709778,1772113257737,-650.0,0.00033,120]
[406709779,1772113257779,-542.11424494,0.00033,120]
[406709780,1772113257821,-1430.12631211,0.00033,120]
[406709781,1772113257864,-2752.55577038,0.00033,30]
[406709782,1772113257908,-3533.42835273,0.00033,120]
[406709783,1772113257950,-1157.115174,0.00033,120]
[406709784,1772113257992,-18353.33677771,0.00033,30]
[406709785,1772113258032,-1000.0,0.00033,30]
[406709786,1772113258072,-100000.0,0.00033,30]
[406709787,1772113258119,-1000.0,0.00033,120]
[406709788,1772113258165,-2715.29,0.00033091,60]
[406709789,1772113258210,-1000.0,0.000331,30]
[406709790,1772113258254,-1358.76,0.00033186,120]
[406709791,1772113258299,-1007.91,0.00033333,120]
[406709792,1772113258342,-1358.76,0.00033392,120]
[406709793,1772113258384,-1000.0,0.000334,30]
[406709794,1772113258427,-4557.32973263,0.00033478,120]
[406709795,1772113258470,-1038.11,0.000335,120]
[406709796,1772113258513,-1358.76,0.00033598,120]
[406709797,1772113258556,-1000.0,0.000337,30]
[406709798,1772113258599,-2861.0,0.000337,120]
[406709799,1772113258643,-4042.09159654,0.00033788,60]
[406709800,1772113258915,-1358.76,0.00033805,120]
[406709801,1772113258959,-1038.11,0.00034,120]
[406709802,1772113259002,-1007.91,0.00034,120]
[406709803,1772113259046,-566.3467391,0.00034,30]
[406709804,1772113259090,-300.0,0.00034,120]
[406709805,1772113259134,-1000.0,0.00034,30]
[406709806,1772113259180,-2000.0,0.00034,120]
[406709807,1772113259225,-1000.0,0.00034,30]
[406709808,1772113259274,-1358.76,0.00034011,120]
[406709809,1772113259321,-235.0,0.00034082,59]
[406709810,1772113259363,-1358.76,0.00034217,120]
[406709811,1772113259404,-1000.0,0.000343,30]
[406709812,1772113259449,-1358.76,0.00034423,120]
[406709813,1772113259493,-1038.11,0.000345,120]
[406709814,1772113259537,-1000.0,0.000346,30]
[406709815,1772113259578,-1358.76,0.00034629,120]
[406709816,1772113259618,-1358.76,0.00034629,120]
[406709817,1772113259661,-709.34,0.00034636,30]
[406709818,1772113259705,-1007.91,0.00034667,120]
[406709819,1772113259748,-1000.11,0.00034736,120]
[406709820,1772113259792,-691.96379824,0.00034799,120]
[406709821,1772113259835,-1000.0,0.000349,30]
[406709822,1772113259878,-200.0,0.00034985,120]
[406709823,1772113259922,-200.0,0.00034985,120]
[406709824,1772113259973,-200.0,0.00034985,120]
[406709825,1772113260025,-200.0,0.00034985,120]
[406709826,1772113260078,-200.0,0.00034985,120]
[406709827,1772113260129,-200.0,0.00034985,120]
[406709828,1772113260179,-1038.11,0.00035,120]
[406709829,1772113260230,-2696.56197546,0.00035,120]
[406709830,1772113260276,-5975.23354371,0.00035,120]
[406709831,1772113260322,-2431.13906053,0.00035,120]
[406709832,1772113260365,-1000.0,0.00035,30]
[406709833,1772113260409,-300.0,0.00035,120]
[406709834,1772113260453,-156.56022396,0.00035,120]
[406709835,1772113260496,-1000.0,0.00035,30]
[406709836,1772113260540,-100000.0,0.00035,30]
[406709837,1772113260584,-1000.0,0.00035,120]
[406709838,1772113260631,-1613.0,0.00035,70]
[406709839,1772113260682,-950.0,0.00035,120]
[406709840,1772113260728,-2437.07353088,0.00035,90]
[406709841,1772113260768,-14635.81713202,0.00035,120]
[406709842,1772113260809,-3578.25947986,0.00035,120]
[406709844,1772113260851,-205.0,0.00035178,59]
[406709845,1772113260893,-1000.0,0.000352,30]
[406709846,1772113260936,-1007.91,0.00035333,120]
[406709847,1772113260979,-1038.11,0.000355,120]
[406709848,1772113261021,-1000.0,0.000355,30]
[406709849,1772113261065,-4676.27397371,0.00035556,120]
[406709850,1772113261106,-500.0,0.0003559,30]
[406709851,1772113261151,-1000.0,0.00035616,120]
[406709852,1772113261194,-151.0,0.00035616,31]
[406709853,1772113261238,-151.0,0.00035616,31]
[406709854,1772113261282,-151.0,0.00035616,31]
[406709855,1772113261326,-151.0,0.00035616,31]
[406709856,1772113261368,-151.0,0.00035616,31]
[406709857,1772113261409,-151.0,0.00035616,31]
[406709858,1772113261448,-151.0,0.00035616,31]
[406709859,1772113261490,-151.0,0.00035616,31]
[406709860,1772113261530,-151.0,0.00035616,31]
[406709861,1772113261572,-189.781983,0.00035616,31]
[406709862,1772113261615,-151.0,0.00035616,31]
[406709863,1772113261654,-151.0,0.00035616,31]
[406709864,1772113261693,-151.0,0.00035616,31]
[406709865,1772113261733,-151.0,0.00035616,31]
[406709866,1772113261771,-151.0,0.00035616,31]
[406709867,1772113261810,-151.0,0.00035616,31]
[406709868,1772113261852,-151.0,0.00035616,31]
[406709869,1772113261896,-151.0,0.00035616,31]
[406709870,1772113261936,-151.0,0.00035616,31]
[406709871,1772113261978,-201.429297,0.00035616,31]
[406709872,1772113262018,-500.0,0.00035719,30]
[406709873,1772113262060,-2715.29,0.00035789,90]
[406709874,1772113262100,-1000.0,0.000358,30]
[406709875,1772113262143,-1038.11,0.00036,120]
[406709876,1772113262183,-3193.6,0.00036,30]
[406709877,1772113262226,-300.0,0.00036,120]
[406709878,1772113262269,-1000.0,0.00036,30]
[406709879,1772113262314,-2000.0,0.00036,120]
[406709880,1772113262356,-2000.0,0.00036,120]
[406709881,1772113262397,-500.0,0.0003607,30]
[406709882,1772113262441,-1000.0,0.000361,30]
[406709883,1772113262489,-1000.0,0.00036138,30]
[406709884,1772113262536,-791.0,0.00036138,30]
[406709885,1772113262580,-180.0,0.00036274,59]
[406709886,1772113262623,-1000.0,0.000364,30]
[406709887,1772113262676,-3000.0,0.000365,60]
[406709888,1772113262724,-945.79,0.0003652,30]
[406709889,1772113262769,-1000.0,0.000367,30]
[406709890,1772113262814,-733.76026927,0.00036799,120]
[406709891,1772113262857,-335.8401,0.000368,120]
[406709892,1772113262903,-459.8818,0.000368,60]
[406709893,1772113262948,-197.18788965,0.000368,120]
[406709894,1772113262996,-2087218.96472093,0.00036983,30]
[406709895,1772113273465,-3748.0,0.00027,120]
[406709896,1772113273516,-206.35,0.0002773,30]
[406709897,1772113273574,-14299.51,0.00034246,120]
[406709898,1772113273618,-791.0,0.00036983,30]
[406709899,1772113273659,-14299.51,0.00036986,120]
[406709900,1772113273698,-1563.82510974,0.00037,60]
[406709901,1772113273738,-300.0,0.00037,120]
[406709902,1772113273779,-1136.0,0.00037,30]
[406709903,1772113273821,-1000.0,0.00037,120]
[406709904,1772113273863,-1000.0,0.00037,30]
[406709905,1772113273907,-1000.0,0.000373,30]
[406709906,1772113273949,-158.0,0.0003737,99]
[406709907,1772113273991,-2700.56395174,0.000375,120]
[406709908,1772113274032,-10000.0,0.000375,60]
[406709909,1772113274073,-200.0,0.000376,120]
[406709910,1772113274120,-341.77956,0.000376,120]
[406709911,1772113274164,-618.6121,0.000376,120]
[406709912,1772113274207,-1000.0,0.000376,30]
[406709913,1772113274248,-500.0,0.00037679,30]
[406709914,1772113274291,-1000.0,0.000379,30]
[406709915,1772113274333,-896.1457136,0.00038,120]
[406709916,1772113274374,-300.0,0.00038,120]
[406709917,1772113274417,-2000.0,0.00038,120]
[406709918,1772113274458,-1386.05,0.00038,120]
[406709919,1772113274499,-7168.9009204,0.00038183,120]
[406709920,1772113274540,-1000.0,0.000382,30]
[406709921,1772113274582,-151.0,0.00038356,120]
[406709922,1772113274623,-196.425226,0.00038356,120]
[406709923,1772113274870,-176.068376,0.00038356,120]
[406709924,1772113274915,-196.425226,0.00038356,120]
[406709925,1772113274961,-196.425226,0.00038356,120]
[406709926,1772113275007,-196.425226,0.00038356,120]
[406709927,1772113275053,-196.425226,0.00038356,120]
[406709928,1772113275099,-196.425226,0.00038356,120]
[406709929,1772113275143,-196.425226,0.00038356,120]
[406709930,1772113275187,-196.425226,0.00038356,120]
[406709931,1772113275230,-196.425226,0.00038356,120]
[406709932,1772113275274,-196.425226,0.00038356,120]
[406709933,1772113275316,-196.425226,0.00038356,120]
[406709934,1772113275359,-151.0,0.00038356,120]
[406709935,1772113275400,-196.425226,0.00038356,120]
[406709936,1772113275441,-164.763141,0.00038356,120]
[406709937,1772113275482,-196.425226,0.00038356,120]
[406709938,1772113275524,-196.425226,0.00038356,120]
[406709939,1772113275565,-196.425226,0.00038356,120]
[406709940,1772113275608,-196.425226,0.00038356,120]
[406709941,1772113275650,-196.425226,0.00038356,120]
[406709942,1772113275691,-196.425226,0.00038356,120]
[406709943,1772113275734,-196.425226,0.00038356,120]
[406709944,1772113275775,-196.42523,0.00038356,120]
[406709945,1772113275816,-243.458075,0.00038356,120]
[406709946,1772113275857,-243.458075,0.00038356,120]
[406709947,1772113275897,-243.458075,0.00038356,120]
[406709948,1772113275939,-243.458075,0.00038356,120]
[406709949,1772113275979,-243.458075,0.00038356,120]
[406709950,1772113276022,-243.458075,0.00038356,120]
[406709951,1772113276064,-243.458075,0.00038356,120]
[406709952,1772113276105,-243.458075,0.00038356,120]
[406709953,1772113276153,-243.458075,0.00038356,120]
[406709954,1772113276195,-243.458075,0.00038356,120]
[406709955,1772113276237,-243.458075,0.00038356,120]
[406709956,1772113276280,-243.458075,0.00038356,120]
[406709957,1772113276323,-243.458075,0.00038356,120]
[406709958,1772113276363,-243.458075,0.00038356,120]
[406709959,1772113276406,-243.458075,0.00038356,120]
[406709960,1772113276449,-243.458075,0.00038356,120]
[406709961,1772113276491,-151.0,0.00038356,120]
[406709962,1772113276535,-243.458075,0.00038356,120]
[406709963,1772113276579,-151.0,0.00038356,120]
[406709964,1772113276623,-243.458075,0.00038356,120]
[406709965,1772113276665,-151.0,0.00038356,120]
[406709966,1772113276709,-243.458075,0.00038356,120]
[406709967,1772113276753,-151.0,0.00038356,120]
[406709968,1772113276793,-243.458073,0.00038356,120]
[406709969,1772113276836,-278.413409,0.00038356,120]
[406709970,1772113276877,-151.0,0.00038356,120]
[406709971,1772113276920,-235.04709,0.00038356,120]
[406709972,1772113276962,-151.0,0.00038356,120]
[406709973,1772113277004,-151.0,0.00038356,120]
[406709974,1772113277044,-151.0,0.00038356,120]
[406709975,1772113277084,-151.0,0.00038356,120]
[406709976,1772113277129,-151.0,0.00038356,120]
[406709977,1772113277174,-250.120476,0.00038356,120]
[406709978,1772113277219,-151.0,0.00038356,120]
[406709979,1772113277263,-250.120476,0.00038356,120]
[406709980,1772113277307,-250.120476,0.00038356,120]
[406709981,1772113277351,-250.120476,0.00038356,120]
[406709982,1772113277395,-151.0,0.00038356,120]
[406709983,1772113277438,-250.120476,0.00038356,120]
[406709984,1772113277487,-151.0,0.00038356,120]
[406709985,1772113277539,-250.120476,0.00038356,120]
[406709986,1772113277590,-151.0,0.00038356,120]
[406709987,1772113277637,-250.120476,0.00038356,120]
[406709988,1772113277682,-151.0,0.00038356,120]
[406709989,1772113277725,-250.120476,0.00038356,120]
[406709990,1772113277768,-151.0,0.00038356,120]
[406709991,1772113277810,-250.120476,0.00038356,120]
[406709992,1772113277852,-151.0,0.00038356,120]
[406709993,1772113277894,-151.0,0.00038356,120]
[406709994,1772113277936,-250.120476,0.00038356,120]
[406709995,1772113277979,-151.0,0.00038356,120]
[406709996,1772113278027,-151.0,0.00038356,120]
[406709997,1772113278070,-250.120476,0.00038356,120]
[406709998,1772113278112,-151.0,0.00038356,120]
[406709999,1772113278156,-244.341026,0.00038356,120]
[406710000,1772113278197,-250.120476,0.00038356,120]
[406710001,1772113278240,-151.0,0.00038356,120]
[406710002,1772113278284,-250.120476,0.00038356,120]
[406710003,1772113278330,-151.0,0.00038356,120]
[406710004,1772113278373,-250.120476,0.00038356,120]
[406710005,1772113278416,-151.0,0.00038356,120]
[406710006,1772113278459,-250.120476,0.00038356,120]
[406710007,1772113278503,-255.664529,0.00038356,120]
[406710008,1772113278548,-250.120476,0.00038356,120]
[406710009,1772113278594,-250.120476,0.00038356,120]
[406710010,1772113278643,-250.120476,0.00038356,120]
[406710011,1772113278691,-250.120476,0.00038356,120]
[406710012,1772113278735,-250.120484,0.00038356,120]
[406710013,1772113278781,-201.895247,0.00038356,120]
[406710014,1772113278827,-201.895247,0.00038356,120]
[406710015,1772113278871,-201.895247,0.00038356,120]
[406710016,1772113278916,-201.895247,0.00038356,120]
[406710017,1772113278963,-201.895247,0.00038356,120]
[406710018,1772113279011,-201.895247,0.00038356,120]
[406710019,1772113279056,-201.895247,0.00038356,120]
[406710020,1772113279098,-201.895247,0.00038356,120]
[406710021,1772113279144,-201.895247,0.00038356,120]
[406710022,1772113279186,-201.895247,0.00038356,120]
[406710023,1772113279229,-201.895247,0.00038356,120]
[406710024,1772113279272,-201.895247,0.00038356,120]
[406710025,1772113279312,-201.895247,0.00038356,120]
[406710026,1772113279354,-201.895247,0.00038356,120]
[406710027,1772113279396,-201.895247,0.00038356,120]
[406710028,1772113279614,-201.895247,0.00038356,120]
[406710029,1772113279664,-201.895247,0.00038356,120]
[406710030,1772113279708,-201.895247,0.00038356,120]
[406710031,1772113279753,-201.895247,0.00038356,120]
[406710032,1772113279796,-201.895253,0.00038356,120]
[406710033,1772113279843,-151.0,0.00038356,120]
[406710034,1772113279888,-151.0,0.00038356,120]
[406710035,1772113279936,-151.0,0.00038356,120]
[406710036,1772113279982,-151.0,0.00038356,120]
[406710037,1772113280028,-151.0,0.00038356,120]
[406710038,1772113280076,-151.0,0.00038356,120]
[406710039,1772113280123,-151.0,0.00038356,120]
[406710040,1772113280168,-151.0,0.00038356,120]
[406710041,1772113280214,-151.0,0.00038356,120]
[406710042,1772113280258,-151.0,0.00038356,120]
[406710043,1772113280302,-151.0,0.00038356,120]
[406710044,1772113280347,-151.0,0.00038356,120]
[406710045,1772113280389,-151.0,0.00038356,120]
[406710046,1772113280430,-151.0,0.00038356,120]
[406710047,1772113280472,-151.0,0.00038356,120]
[406710048,1772113280514,-151.0,0.00038356,120]
[406710049,1772113280556,-151.0,0.00038356,120]
[406710050,1772113280599,-151.0,0.00038356,120]
[406710051,1772113280650,-151.0,0.00038356,120]
[406710052,1772113280695,-223.687412,0.00038356,120]
[406710053,1772113280737,-313.748532,0.00038356,120]
[406710054,1772113280778,-313.748532,0.00038356,120]
[406710055,1772113280824,-313.748532,0.00038356,120]
[406710056,1772113280867,-313.748532,0.00038356,120]
[406710057,1772113280911,-313.748532,0.00038356,120]
[406710058,1772113280953,-313.748532,0.00038356,120]
[406710059,1772113280996,-313.748532,0.00038356,120]
[406710060,1772113281039,-313.748532,0.00038356,120]
[406710061,1772113281080,-313.748532,0.00038356,120]
[406710062,1772113281122,-313.748532,0.00038356,120]
[406710063,1772113281163,-313.748532,0.00038356,120]
[406710064,1772113281205,-313.748532,0.00038356,120]
[406710065,1772113281247,-313.748532,0.00038356,120]
[406710066,1772113281289,-313.748532,0.00038356,120]
[406710067,1772113281331,-313.748532,0.00038356,120]
[406710068,1772113281372,-313.748532,0.00038356,120]
[406710069,1772113281413,-313.748532,0.00038356,120]
[406710070,1772113281453,-313.748532,0.00038356,120]
[406710071,1772113281495,-313.748532,0.00038356,120]
[406710072,1772113281538,-313.748538,0.00038356,120]
[406710073,1772113281579,-151.0,0.00038356,120]
[406710074,1772113281621,-151.0,0.00038356,120]